bitfinex/quotes_BTCUSD_20250623
["timestamp","ask_amount","ask_price","bid_price","bid_amount"]
[1750710965543,0.15452161,103900.0,103890.0,0.00048401]
[1750710965763,0.64281215,103900.0,103890.0,0.00048401]
[1750710966044,0.67161771,103900.0,103890.0,0.00048401]
[1750710966486,0.64281215,103900.0,103890.0,0.00248401]
[1750710966935,0.12332161,103900.0,103890.0,0.06678401]
[1750710967163,0.842313,103900.0,103890.0,0.00248401]
[1750710967625,0.873113,103900.0,103890.0,0.00248401]
[1750710968069,0.873113,103900.0,103890.0,0.00348401]
[1750710968283,0.904913,103900.0,103890.0,0.00348401]
[1750710968980,0.873113,103900.0,103890.0,0.00348401]
[1750710969655,0.872953,103900.0,103890.0,0.00348401]
[1750710969930,0.97325239,103900.0,103890.0,0.00348401]
[1750710970153,1.00645239,103900.0,103890.0,0.00348401]
[1750710971975,1.246153,103900.0,103890.0,0.00348401]
[1750710972200,2.657362,103900.0,103890.0,0.00348401]
[1750710973109,2.71501912,103900.0,103890.0,0.00348401]
[1750710973566,2.68621356,103900.0,103890.0,0.00248401]
[1750710973813,2.65926356,103900.0,103890.0,0.00248401]
[1750710974048,2.75956295,103900.0,103890.0,0.00248401]
[1750710974277,2.83636844,103900.0,103890.0,0.00248401]
[1750710974501,2.88142446,103900.0,103890.0,0.00248401]
[1750710974744,2.88542478,103900.0,103890.0,0.00248401]
[1750710975001,2.30554954,103890.0,103880.0,0.0992]
[1750710975231,3.14871784,103890.0,103880.0,0.0992]
[1750710975457,3.18703088,103890.0,103880.0,0.0992]
[1750710975689,3.14871784,103890.0,103880.0,0.01126341]
[1750710975917,1.73679985,103880.0,103870.0,0.0002]
[1750710976151,3.19754247,103880.0,103870.0,0.0002]
[1750710976399,3.19754247,103880.0,103860.0,0.05373847]
[1750710976400,0.34,103870.0,103860.0,0.05373847]
[1750710976637,0.34,103870.0,103850.0,0.0002]
[1750710976638,0.35454085,103840.0,103830.0,0.0002]
[1750710976870,1.67842132,103840.0,103830.0,0.0002]
[1750710977095,1.70141681,103840.0,103830.0,0.0002]
[1750710977318,1.18192627,103840.0,103830.0,0.0002]
[1750710977583,2.59315027,103840.0,103830.0,0.0002]
[1750710978248,2.07408053,103840.0,103830.0,0.003023]
[1750710978475,2.59357107,103840.0,103830.0,0.003023]
[1750710978694,2.07408053,103840.0,103830.0,0.003023]
[1750710978932,2.59357107,103840.0,103830.0,0.003023]
[1750710979395,2.59557107,103840.0,103830.0,0.003023]
[1750710979617,2.59557107,103840.0,103830.0,2.3e-05]
[1750710980091,2.62430441,103840.0,103830.0,2.3e-05]
[1750710980541,2.62425672,103840.0,103830.0,2.3e-05]
[1750710980790,0.34,103820.0,103810.0,0.064133]
[1750710981026,0.63936024,103820.0,103810.0,0.064133]
[1750710981238,1.15885078,103820.0,103810.0,0.064133]
[1750710981449,1.15885078,103820.0,103800.0,0.0366]
[1750710982148,0.45484024,103820.0,103810.0,0.0325]
[1750710982368,0.64032024,103820.0,103810.0,0.0395]
[1750710982608,1.15981078,103820.0,103810.0,0.0325]
[1750710982850,1.07563017,103820.0,103810.0,0.00882536]
[1750710983076,1.39679985,103810.0,103800.0,0.0435]
[1750710983306,0.63433078,103810.0,103800.0,0.05232896]
[1750710983549,0.63433078,103810.0,103800.0,0.01282896]
[1750710983760,0.11484024,103810.0,103800.0,0.01282896]
[1750710983977,0.63433078,103810.0,103800.0,0.01282896]
[1750710984198,0.73463017,103810.0,103800.0,0.004]
[1750710984421,0.63533078,103810.0,103800.0,0.01]
[1750710984856,2.04598308,103810.0,103800.0,0.01]
[1750710985077,2.04598308,103810.0,103800.0,0.018]
[1750710985300,2.04698308,103810.0,103800.0,0.018]
[1750710985536,0.48523354,103810.0,103800.0,0.018]
[1750710985758,1.21709608,103810.0,103800.0,0.012]
[1750710985983,1.21609608,103810.0,103800.0,0.004]
[1750710986214,1.21609608,103810.0,103800.0,0.01]
[1750710986215,1.21709608,103810.0,103800.0,0.01]
[1750710986681,0.51320554,103810.0,103800.0,0.01]
[1750710986909,0.51320554,103810.0,103800.0,0.0753]
[1750710987136,0.69760554,103810.0,103800.0,0.27761213]
[1750710987367,0.47027139,103810.0,103800.0,0.0753]
[1750710987590,0.47027139,103810.0,103800.0,0.28724566]
[1750710987786,0.47027139,103810.0,103800.0,0.29687929]
[1750710988266,0.47027139,103810.0,103800.0,0.27761203]
[1750710988475,0.47027139,103810.0,103800.0,0.0753]
[1750710988693,0.47027139,103810.0,103800.0,0.26797822]
[1750710988913,0.47027139,103810.0,103800.0,0.27761194]
[1750710989172,0.341,103810.0,103800.0,0.28724557]
[1750710989393,0.341,103810.0,103800.0,0.28724575]
[1750710989614,0.341,103810.0,103800.0,0.08493391]
[1750710989855,0.341,103810.0,103800.0,0.0753]
[1750710990316,0.86049054,103810.0,103800.0,0.0753]
[1750710990747,0.97533078,103810.0,103800.0,0.0753]
[1750710991392,0.45584024,103810.0,103800.0,0.0753]
[1750710991605,0.97533078,103810.0,103800.0,0.0753]
[1750710992068,1.15961078,103810.0,103800.0,0.0753]
[1750710992516,1.15961078,103810.0,103800.0,0.0752]
[1750710992517,0.64012024,103810.0,103800.0,0.0752]
[1750710992788,0.64012024,103810.0,103800.0,0.26787822]
[1750710993007,0.64012024,103810.0,103800.0,0.27751203]
[1750710993229,0.64012024,103810.0,103800.0,0.28714575]
[1750710993461,0.45584024,103810.0,103800.0,0.27751203]
[1750710993679,0.52524,103810.0,103800.0,0.27751213]
[1750710993898,0.52524,103810.0,103800.0,0.28714594]
[1750710994108,0.52524,103810.0,103800.0,0.27751203]
[1750710994322,0.52524,103810.0,103800.0,0.27751213]
[1750710994543,0.52524,103810.0,103800.0,0.28714594]
[1750710994759,0.52524,103810.0,103800.0,0.0752]
[1750710995236,0.341,103810.0,103800.0,0.0752]
[1750710995461,0.52524,103810.0,103800.0,0.0752]
[1750710995902,0.52524,103810.0,103800.0,0.27751213]
[1750710996123,0.52524,103810.0,103800.0,0.0752]
[1750710996340,0.52524,103810.0,103800.0,0.27751213]
[1750710996604,0.001,103810.0,103800.0,0.31604618]
[1750710997488,0.34,103820.0,103810.0,0.21192525]
[1750710997702,0.34,103820.0,103810.0,0.27752525]
[1750710997926,0.34,103820.0,103810.0,0.28615786]
[1750710998599,0.34,103820.0,103810.0,0.29579019]
[1750710999034,0.34,103820.0,103810.0,0.29879019]
[1750711000652,2.74726553,103840.0,103830.0,0.0626]
[1750711000876,2.46949353,103840.0,103830.0,0.25522255]
[1750711001110,2.46949353,103840.0,103830.0,0.27448452]
[1750711001367,2.46949353,103840.0,103830.0,0.97101567]
[1750711001368,2.0004608,103840.0,103830.0,0.97101567]
[1750711001641,1.9359608,103840.0,103830.0,1.54349567]
[1750711001902,1.9047608,103840.0,103830.0,1.54349567]
[1750711002151,1.9097608,103840.0,103830.0,1.54349567]
[1750711002411,1.9047608,103840.0,103830.0,1.54349567]
[1750711002674,1.9077608,103840.0,103830.0,1.55449567]
[1750711002888,1.9057608,103840.0,103830.0,1.55449567]
[1750711003346,1.9067608,103840.0,103830.0,1.56349567]
[1750711004941,1.9067608,103840.0,103830.0,1.04400513]
[1750711005161,1.9067608,103840.0,103830.0,1.56349567]
[1750711007603,1.9067608,103840.0,103830.0,1.04400513]
[1750711007815,1.9067608,103840.0,103830.0,1.74729567]
[1750711008289,1.9067608,103840.0,103830.0,0.44399113]
[1750711008505,1.9067608,103840.0,103830.0,0.68523113]
[1750711008733,1.9067608,103840.0,103830.0,1.20472167]
[1750711009365,1.9067608,103840.0,103830.0,1.20464167]
[1750711011081,1.9067608,103840.0,103830.0,1.50084167]
[1750711011293,1.9067608,103840.0,103830.0,0.74019113]
[1750711011505,1.9067608,103840.0,103830.0,1.50024167]
[1750711012383,1.9067608,103840.0,103830.0,1.23073567]
[1750711012612,1.9067608,103840.0,103830.0,1.47125567]
[1750711014082,1.9067608,103840.0,103830.0,0.95176513]
[1750711014320,1.9067608,103840.0,103830.0,1.47125567]
[1750711015875,1.9067608,103840.0,103830.0,0.95176513]
[1750711016080,1.9067608,103840.0,103830.0,1.47125567]
[1750711021600,1.9067608,103840.0,103830.0,1.81125567]
[1750711021866,1.9067608,103840.0,103830.0,1.35630598]
[1750711022352,1.9067608,103840.0,103830.0,1.90474352]
[1750711023137,1.9067608,103840.0,103830.0,1.84020267]
[1750711023380,1.9067608,103840.0,103830.0,1.89020267]
[1750711023614,1.9067608,103840.0,103830.0,1.90474352]
[1750711024061,1.85024162,103840.0,103830.0,2.42423406]
[1750711024280,1.85024162,103840.0,103830.0,2.47423406]
[1750711025169,1.84924162,103840.0,103830.0,2.46523406]
[1750711025391,1.84824162,103840.0,103830.0,1.94174352]
[1750711025611,1.84824162,103840.0,103830.0,2.46923406]
[1750711026088,1.55204162,103840.0,103830.0,2.46923406]
[1750711033134,1.55204162,103840.0,103830.0,1.94974352]
[1750711033583,1.55204162,103840.0,103830.0,2.46923406]
[1750711033809,1.55204162,103840.0,103830.0,1.64468267]
[1750711034070,1.55204162,103840.0,103830.0,1.93436267]
[1750711034278,1.55204162,103840.0,103830.0,1.37941298]
[1750711034495,1.55204162,103840.0,103830.0,1.84890352]
[1750711034702,1.55204162,103840.0,103830.0,1.89890352]
[1750711035361,1.55204162,103840.0,103830.0,1.84890352]
[1750711035585,1.55204162,103840.0,103830.0,1.42941298]
[1750711035808,1.55204162,103840.0,103830.0,1.94890352]
[1750711036963,1.55204162,103840.0,103830.0,1.28257213]
[1750711037181,1.55204162,103840.0,103830.0,1.80206267]
[1750711038272,1.55204162,103840.0,103830.0,1.31425213]
[1750711038481,1.55204162,103840.0,103830.0,1.83374267]
[1750711039160,1.55204162,103840.0,103830.0,1.89828352]
[1750711041143,1.55204162,103840.0,103830.0,1.65872352]
[1750711041345,1.55204162,103840.0,103830.0,1.89820352]
[1750711041996,1.55204162,103840.0,103830.0,1.86640352]
[1750711043068,1.55204162,103840.0,103830.0,1.62692352]
[1750711043281,1.55204162,103840.0,103830.0,1.86568352]
[1750711044360,1.55204162,103840.0,103830.0,1.86468352]
[1750711045537,1.55204162,103840.0,103830.0,1.68208352]
[1750711045747,1.55204162,103840.0,103830.0,1.83422352]
[1750711046414,1.55204162,103840.0,103830.0,1.89299177]
[1750711046638,1.58214162,103840.0,103830.0,1.06775213]
[1750711046858,1.58214162,103840.0,103830.0,1.48345195]
[1750711047085,1.61444162,103840.0,103830.0,1.66585195]
[1750711047311,2.03014144,103840.0,103830.0,0.52884513]
[1750711047539,1.61444162,103840.0,103830.0,0.52884513]
[1750711048216,1.61444162,103840.0,103830.0,0.52184513]
[1750711048459,1.61444162,103840.0,103830.0,0.52784513]
[1750711048685,1.61444162,103840.0,103830.0,0.24514574]
[1750711048909,2.03014144,103840.0,103830.0,0.41346574]
[1750711049125,2.03014144,103840.0,103830.0,0.4038348]
[1750711049346,2.03014144,103840.0,103830.0,0.4098348]
[1750711049793,2.03014144,103840.0,103830.0,0.4108349]
[1750711050013,2.03014144,103840.0,103830.0,0.42046537]
[1750711050233,2.03014144,103840.0,103830.0,0.42346537]
[1750711050457,2.03014144,103840.0,103830.0,0.4138349]
[1750711050458,1.63903941,103840.0,103830.0,0.4138349]
[1750711050689,1.63903941,103840.0,103830.0,0.01]
[1750711050690,2.06319315,103840.0,103830.0,0.01]
[1750711050919,2.06319315,103840.0,103830.0,0.2218847]
[1750711051144,1.46624647,103840.0,103830.0,0.23151554]
[1750711051388,1.46624647,103840.0,103830.0,0.25077676]
[1750711051389,1.44164868,103840.0,103830.0,0.25077676]
[1750711051872,1.44164868,103840.0,103830.0,0.24114629]
[1750711052099,1.44164868,103840.0,103830.0,0.25077695]
[1750711052332,1.44164868,103840.0,103830.0,0.25077584]
[1750711052557,1.44164868,103840.0,103830.0,0.24114537]
[1750711053036,1.44164868,103840.0,103830.0,0.25077584]
[1750711053473,1.49164868,103840.0,103830.0,0.25077584]
[1750711054130,1.49164868,103840.0,103830.0,0.24114537]
[1750711054369,1.49164868,103840.0,103830.0,0.25077584]
[1750711054838,1.49164868,103840.0,103830.0,0.35107523]
[1750711055065,1.45934868,103840.0,103830.0,0.35107523]
[1750711055523,1.40934868,103840.0,103830.0,0.35107523]
[1750711057337,1.40934868,103840.0,103830.0,0.53315523]
[1750711057553,1.43934868,103840.0,103830.0,0.35107523]
[1750711057768,1.43934868,103840.0,103830.0,0.53315523]
[1750711058888,1.43934868,103840.0,103830.0,0.43285584]
[1750711059148,1.43934868,103840.0,103830.0,0.42322537]
[1750711059386,1.43934868,103840.0,103830.0,0.43285584]
[1750711062346,1.43934868,103840.0,103830.0,0.46180884]
[1750711062567,1.43934868,103840.0,103830.0,0.43285584]
[1750711063942,1.43934868,103840.0,103830.0,0.43265584]
[1750711069216,1.43934868,103840.0,103830.0,0.53295523]
[1750711069217,1.40934868,103840.0,103830.0,0.53295523]
[1750711071705,1.40934868,103840.0,103830.0,0.56190723]
[1750711071918,1.40934868,103840.0,103830.0,0.58723168]
[1750711072621,1.44204868,103840.0,103830.0,0.56190723]
[1750711072841,1.85793129,103840.0,103830.0,0.56190723]
[1750711073069,1.85793129,103840.0,103830.0,0.56158723]
[1750711073282,1.44204868,103840.0,103830.0,0.56158723]
[1750711073527,1.40934868,103840.0,103830.0,0.56158723]
[1750711075755,1.43984868,103840.0,103830.0,0.56158723]
[1750711076423,1.43984868,103840.0,103830.0,0.53263523]
[1750711077078,1.43984868,103840.0,103830.0,0.35107523]
[1750711077303,1.43984868,103840.0,103830.0,0.53255523]
[1750711078000,1.43984868,103840.0,103830.0,0.43217584]
[1750711078976,1.85573129,103840.0,103830.0,0.43217584]
[1750711080488,2.19573129,103840.0,103830.0,0.19128]
[1750711080713,2.19573129,103840.0,103830.0,0.39353349]
[1750711080941,2.19573129,103840.0,103830.0,0.39353358]
[1750711081404,2.19573129,103840.0,103830.0,0.38390255]
[1750711081640,2.19573129,103840.0,103830.0,0.21225349]
[1750711081863,2.19573129,103840.0,103830.0,0.40316452]
[1750711082090,2.19573129,103840.0,103830.0,0.41279536]
[1750711082767,2.19573129,103840.0,103830.0,0.41271536]
[1750711082983,2.19573129,103840.0,103830.0,0.40308452]
[1750711083450,1.77984868,103840.0,103830.0,0.42234593]
[1750711083692,1.37924868,103840.0,103830.0,0.9481184]
[1750711083891,1.37924868,103840.0,103830.0,0.53223579]
[1750711085267,1.40954868,103840.0,103830.0,0.53219579]
[1750711086399,1.44004868,103840.0,103830.0,0.01]
[1750711086622,1.85593129,103840.0,103830.0,0.22188433]
[1750711086839,1.85593129,103840.0,103830.0,0.01]
[1750711087072,1.85593129,103840.0,103830.0,0.21225358]
[1750711087556,1.85593129,103840.0,103830.0,0.01]
[1750711088010,1.44004868,103840.0,103830.0,0.01]
[1750711088235,1.85593129,103840.0,103830.0,0.01]
[1750711088688,2.24593129,103840.0,103830.0,0.01]
[1750711089840,1.83004868,103840.0,103830.0,0.2315149]
[1750711090052,2.24593129,103840.0,103830.0,0.22188452]
[1750711090294,1.83004868,103840.0,103830.0,0.24114565]
[1750711090766,1.83004868,103840.0,103830.0,0.24114574]
[1750711090991,2.24593129,103840.0,103830.0,0.24114574]
[1750711091224,2.24593129,103840.0,103830.0,0.25077631]
[1750711091456,1.83004868,103840.0,103830.0,0.24114584]
[1750711091920,1.83004868,103840.0,103830.0,0.23151527]
[1750711092156,1.83004868,103840.0,103830.0,0.24114593]
[1750711092374,1.83004868,103840.0,103830.0,0.2507765]
[1750711092598,1.83004868,103840.0,103830.0,0.24114593]
[1750711093038,2.24593129,103840.0,103830.0,0.24114593]
[1750711093260,2.24593129,103840.0,103830.0,0.2507765]
[1750711093669,2.24593129,103840.0,103830.0,0.24114593]
[1750711093988,2.24593129,103840.0,103830.0,0.23151536]
[1750711094202,2.24593129,103840.0,103830.0,0.24114611]
[1750711094416,2.24593129,103840.0,103830.0,0.23151536]
[1750711095300,2.24593129,103840.0,103830.0,0.21225367]
[1750711095517,2.24593129,103840.0,103830.0,0.01]
[1750711095949,2.24593129,103840.0,103830.0,0.21225358]
[1750711096181,1.83004868,103840.0,103830.0,0.22188442]
[1750711096406,1.83004868,103840.0,103830.0,0.21225358]
[1750711096661,2.24593129,103840.0,103830.0,0.22188452]
[1750711096876,2.24593129,103840.0,103830.0,0.23151536]
[1750711097088,2.24593129,103840.0,103830.0,0.22188452]
[1750711097306,2.24593129,103840.0,103830.0,0.21225358]
[1750711097728,2.24593129,103840.0,103830.0,0.22188433]
[1750711097941,2.24593129,103840.0,103830.0,0.23151499]
[1750711098161,2.24593129,103840.0,103830.0,0.22188442]
[1750711098663,2.24593129,103840.0,103830.0,0.22188452]
[1750711099786,2.24593129,103840.0,103830.0,0.21225358]
[1750711099998,2.24593129,103840.0,103830.0,0.23151526]
[1750711100206,2.24593129,103840.0,103830.0,0.22188451]
[1750711100462,2.24593129,103840.0,103830.0,0.23151508]
[1750711100675,2.24593129,103840.0,103830.0,0.23151526]
[1750711100893,1.83004868,103840.0,103830.0,0.24114592]
[1750711101099,1.83004868,103840.0,103830.0,0.23151526]
[1750711101751,2.24593129,103840.0,103830.0,0.2218847]
[1750711101963,2.24593129,103840.0,103830.0,0.24114648]
[1750711102188,2.24593129,103840.0,103830.0,0.23151564]
[1750711102419,2.24593129,103840.0,103830.0,0.24114648]
[1750711102636,2.24593129,103840.0,103830.0,0.23151564]
[1750711102888,1.83004868,103840.0,103830.0,0.25077705]
[1750711103122,2.24593129,103840.0,103830.0,0.23151564]
[1750711103339,2.24593129,103840.0,103830.0,0.24114648]
[1750711103554,2.24593129,103840.0,103830.0,0.23151554]
[1750711103778,2.24593129,103840.0,103830.0,0.23151564]
[1750711103991,2.24593129,103840.0,103830.0,0.2218847]
[1750711104199,2.24593129,103840.0,103830.0,0.23151564]
[1750711104514,2.24593129,103840.0,103830.0,0.2218847]
[1750711104766,2.24593129,103840.0,103830.0,0.23151564]
[1750711104997,2.24593129,103840.0,103830.0,0.24114648]
[1750711105218,2.24593129,103840.0,103830.0,0.25077723]
[1750711105431,2.24593129,103840.0,103830.0,0.24114648]
[1750711105646,2.24593129,103840.0,103830.0,0.23151564]
[1750711105863,2.24593129,103840.0,103830.0,0.2218847]
[1750711106099,2.24593129,103840.0,103830.0,0.23151564]
[1750711107500,2.24593129,103840.0,103830.0,0.24114648]
[1750711108479,2.24593129,103840.0,103830.0,0.24114611]
[1750711108892,2.24593129,103840.0,103830.0,0.21225358]
[1750711109098,2.24593129,103840.0,103830.0,0.21225367]
[1750711110014,2.24593129,103840.0,103830.0,0.2218847]
[1750711110659,2.24593129,103840.0,103830.0,0.23151554]
[1750711111003,2.24593129,103840.0,103830.0,0.2218847]
[1750711111418,2.24593129,103840.0,103830.0,0.01]
[1750711111977,2.24593129,103840.0,103830.0,0.01963112]
[1750711112184,2.24593129,103840.0,103830.0,0.01]
[1750711112600,1.42924868,103840.0,103830.0,0.7781968]
[1750711112821,1.37924868,103840.0,103830.0,0.39301419]
[1750711113036,1.37924868,103840.0,103830.0,0.9890968]
[1750711113915,1.37924868,103840.0,103830.0,1.40497941]
[1750711115004,1.37924868,103840.0,103830.0,1.01747911]
[1750711115409,1.37924868,103840.0,103830.0,1.01047911]
[1750711115864,1.37924868,103840.0,103830.0,0.5945965]
[1750711116091,1.37924868,103840.0,103830.0,0.6493165]
[1750711116305,1.37924868,103840.0,103830.0,1.07019911]
[1750711116501,1.37924868,103840.0,103830.0,1.06719911]
[1750711116713,1.37924868,103840.0,103830.0,0.83627911]
[1750711116921,1.37924868,103840.0,103830.0,1.07115911]
[1750711117125,1.37924868,103840.0,103830.0,0.83627911]
[1750711117334,1.37924868,103840.0,103830.0,1.07111911]
[1750711118200,1.37924868,103840.0,103830.0,0.83627911]
[1750711118407,1.37924868,103840.0,103830.0,1.07111911]
[1750711118611,1.37924868,103840.0,103830.0,0.6552365]
[1750711118820,1.37924868,103840.0,103830.0,1.07111911]
[1750711119240,1.37924868,103840.0,103830.0,0.59611419]
[1750711119476,1.37924868,103840.0,103830.0,0.21125358]
[1750711119691,1.40974868,103840.0,103830.0,0.4104348]
[1750711120103,1.40974868,103840.0,103830.0,0.4104349]
[1750711120311,1.40974868,103840.0,103830.0,0.42006537]
[1750711120523,1.85583129,103840.0,103830.0,0.39117358]
[1750711120766,1.43994868,103840.0,103830.0,0.39117358]
[1750711120980,1.85583129,103840.0,103830.0,0.009]
[1750711121632,1.85583129,103840.0,103830.0,0.005]
[1750711121848,2.19583129,103840.0,103830.0,0.005]
[1750711122087,2.34517129,103840.0,103820.0,0.23115523]
[1750711122299,0.0315,103830.0,103820.0,0.24078663]
[1750711122762,0.0315,103830.0,103820.0,0.23115523]
[1750711122991,0.062,103830.0,103820.0,0.22152392]
[1750711123450,0.062,103830.0,103820.0,0.21489233]
[1750711123689,0.062,103830.0,103820.0,0.21989233]
[1750711123915,0.062,103830.0,103820.0,0.21990492]
[1750711124366,0.062,103830.0,103820.0,0.22953669]
[1750711124607,0.062,103830.0,103820.0,0.23916837]
[1750711125048,0.062,103830.0,103820.0,0.23916819]
[1750711125277,0.062,103830.0,103820.0,0.2265366]
[1750711125473,0.062,103830.0,103820.0,0.22190492]
[1750711125687,0.062,103830.0,103820.0,0.23153669]
[1750711126144,0.062,103830.0,103820.0,0.24116837]
[1750711126373,0.0315,103830.0,103820.0,0.25079977]
[1750711128786,2.02294839,103840.0,103820.0,0.25079912]
[1750711128992,2.02294839,103840.0,103820.0,0.25079848]
[1750711129651,1.60706578,103840.0,103830.0,0.19262255]
[1750711129870,2.02294839,103840.0,103820.0,0.22653503]
[1750711130075,2.02294839,103840.0,103830.0,0.21188433]
[1750711130272,2.02294839,103840.0,103830.0,0.20225349]
[1750711130516,2.02294839,103840.0,103830.0,0.21188433]
[1750711130728,2.02294839,103840.0,103830.0,0.00963112]
[1750711130939,2.02294839,103840.0,103830.0,0.00963103]
[1750711131185,2.02294839,103840.0,103830.0,0.20225358]
[1750711131743,2.02294839,103840.0,103830.0,0.20525358]
[1750711131953,2.05544839,103840.0,103830.0,0.21488452]
[1750711132186,1.63956578,103840.0,103830.0,0.22451527]
[1750711132340,2.05544839,103840.0,103830.0,0.22751536]
[1750711132797,1.63956578,103840.0,103830.0,0.23714602]
[1750711133168,2.05544839,103840.0,103830.0,0.24677659]
[1750711133525,2.05544839,103840.0,103830.0,0.22751536]
[1750711134374,2.05544839,103840.0,103830.0,0.21788452]
[1750711135197,2.05544839,103840.0,103830.0,0.20825358]
[1750711135394,2.05544839,103840.0,103830.0,0.21788452]
[1750711136022,2.05544839,103840.0,103830.0,0.21788442]
[1750711136231,2.05544839,103840.0,103830.0,0.20825358]
[1750711136917,1.63956578,103840.0,103830.0,0.21788442]
[1750711137129,2.05544839,103840.0,103830.0,0.21788442]
[1750711137521,2.05544839,103840.0,103830.0,0.21788452]
[1750711137734,2.05544839,103840.0,103830.0,0.20825358]
[1750711137945,2.05544839,103840.0,103830.0,0.21788452]
[1750711138178,1.23426578,103840.0,103830.0,0.23714574]
[1750711140321,1.23426578,103840.0,103830.0,0.81672774]
[1750711140781,1.23426578,103840.0,103830.0,0.40084513]
[1750711141074,1.23426578,103840.0,103830.0,1.11292774]
[1750711141746,1.23426578,103840.0,103830.0,0.81672774]
[1750711143077,1.23426578,103840.0,103830.0,0.40084513]
[1750711143318,1.23426578,103840.0,103830.0,0.81672774]
[1750711144490,1.71334839,103840.0,103830.0,0.23714574]
[1750711144749,1.68254839,103840.0,103830.0,0.23714574]
[1750711144967,1.26666578,103840.0,103830.0,0.23714574]
[1750711145192,1.26666578,103840.0,103830.0,0.40651527]
[1750711145407,1.29746578,103840.0,103830.0,0.40651518]
[1750711145623,1.71334839,103840.0,103830.0,0.40651518]
[1750711145835,1.71334839,103840.0,103830.0,0.41614575]
[1750711146050,1.29746578,103840.0,103830.0,0.41614593]
[1750711146265,1.71334839,103840.0,103830.0,0.41614593]
[1750711146700,1.71334839,103840.0,103830.0,0.41614602]
[1750711147151,1.29746578,103840.0,103830.0,0.42577659]
[1750711147388,1.71334839,103840.0,103830.0,0.42577603]
[1750711148221,1.29746578,103840.0,103830.0,0.42577603]
[1750711148713,1.71334839,103840.0,103830.0,0.41614556]
[1750711148929,1.71334839,103840.0,103830.0,0.40635499]
[1750711149147,1.71334839,103840.0,103830.0,0.42561603]
[1750711149795,1.71334839,103840.0,103830.0,0.41598556]
[1750711150027,1.71334839,103840.0,103830.0,0.42561603]
[1750711150667,1.29746578,103840.0,103830.0,0.42561603]
[1750711151963,1.71334839,103840.0,103830.0,0.42549603]
[1750711152177,1.29746578,103840.0,103830.0,0.42549603]
[1750711152426,1.71334839,103840.0,103830.0,0.42549603]
[1750711153709,1.29746578,103840.0,103830.0,0.42549603]
[1750711153972,1.29746578,103840.0,103830.0,0.42533526]
[1750711154190,1.23426578,103840.0,103830.0,0.42533526]
[1750711156111,1.23426578,103840.0,103830.0,0.38681272]
[1750711156351,1.23426578,103840.0,103830.0,0.39644356]
[1750711156592,1.23426578,103840.0,103830.0,0.37718178]
[1750711156806,1.23426578,103840.0,103830.0,0.18472]
[1750711157016,1.26476578,103840.0,103830.0,0.38697358]
[1750711157225,1.26476578,103840.0,103830.0,0.37734255]
[1750711157398,1.26476578,103840.0,103830.0,0.38697358]
[1750711157616,1.26476578,103840.0,103830.0,0.18472]
[1750711157820,1.68064839,103840.0,103830.0,0.18472]
[1750711158048,1.68064839,103840.0,103830.0,0.19435112]
[1750711158256,1.68064839,103840.0,103830.0,0.18472]
[1750711158596,1.68064839,103840.0,103830.0,0.19435112]
[1750711158802,1.68064839,103840.0,103830.0,0.38697358]
[1750711159435,1.68064839,103840.0,103830.0,0.38697367]
[1750711159646,1.68064839,103840.0,103830.0,0.18472]
[1750711159866,1.68064839,103840.0,103830.0,0.19435112]
[1750711161957,1.68064839,103840.0,103830.0,0.18472]
[1750711162416,1.71204839,103840.0,103830.0,0.006]
[1750711162663,1.29616578,103840.0,103830.0,0.006]
[1750711162883,1.29616578,103840.0,103830.0,0.01563112]
[1750711163104,1.71204839,103840.0,103830.0,0.006]
[1750711163784,1.29616578,103840.0,103830.0,0.006]
[1750711164025,1.71204839,103840.0,103830.0,0.006]
[1750711167381,1.29616578,103840.0,103830.0,0.006]
[1750711167592,1.71204839,103840.0,103830.0,0.006]
[1750711169306,1.68064839,103840.0,103830.0,0.006]
[1750711169727,1.68064839,103840.0,103830.0,0.20825349]
[1750711169728,1.26476578,103840.0,103830.0,0.20825349]
[1750711169945,1.23426578,103840.0,103830.0,0.20825367]
[1750711170170,1.23426578,103840.0,103830.0,0.2178847]
[1750711170386,1.23426578,103840.0,103830.0,0.22751564]
[1750711171049,1.23426578,103840.0,103830.0,0.2178847]
[1750711171261,1.65014839,103840.0,103830.0,0.01563112]
[1750711171695,1.65014839,103840.0,103830.0,0.02526215]
[1750711171907,1.65014839,103840.0,103830.0,0.20825367]
[1750711172138,1.65014839,103840.0,103830.0,0.02526215]
[1750711172358,1.65014839,103840.0,103830.0,0.01563112]
[1750711173674,1.65014839,103840.0,103830.0,0.20825367]
[1750711174092,1.65014839,103840.0,103830.0,0.2178847]
[1750711174301,1.65014839,103840.0,103830.0,0.22751564]
[1750711174509,1.23426578,103840.0,103830.0,0.24677705]
[1750711174715,1.23426578,103840.0,103830.0,0.23714639]
[1750711175208,1.23426578,103840.0,103830.0,0.22751564]
[1750711175660,1.23426578,103840.0,103830.0,0.23714648]
[1750711175871,1.65014839,103840.0,103830.0,0.24677723]
[1750711176420,1.65014839,103840.0,103830.0,0.22751564]
[1750711177216,1.65014839,103840.0,103830.0,0.2178847]
[1750711177448,1.65014839,103840.0,103830.0,0.22751564]
[1750711177873,1.65014839,103840.0,103830.0,0.2178847]
[1750711178086,1.65014839,103840.0,103830.0,0.22751564]
[1750711178302,1.65014839,103840.0,103830.0,0.23714648]
[1750711178516,1.65014839,103840.0,103830.0,0.20825367]
[1750711178732,1.65014839,103840.0,103830.0,0.22751564]
[1750711179617,1.65014839,103840.0,103830.0,0.2178847]
[1750711179875,1.65014839,103840.0,103830.0,0.22751564]
[1750711180074,1.65014839,103840.0,103830.0,0.20825367]
[1750711180330,1.65014839,103840.0,103830.0,0.2178847]
[1750711180756,1.65014839,103840.0,103830.0,0.22751564]
[1750711180966,1.65014839,103840.0,103830.0,0.24677723]
[1750711181247,1.23426578,103840.0,103830.0,0.24677631]
[1750711181477,1.23426578,103840.0,103830.0,0.24677584]
[1750711181680,1.65014839,103840.0,103830.0,0.23714537]
[1750711182106,1.65014839,103840.0,103830.0,0.2275148]
[1750711182299,1.65014839,103840.0,103830.0,0.23714537]
[1750711182915,1.23426578,103840.0,103830.0,0.2275148]
[1750711183129,1.23426578,103840.0,103830.0,0.81592727]
[1750711183791,1.23426578,103840.0,103830.0,0.40004466]
[1750711184003,1.23426578,103840.0,103830.0,0.63092466]
[1750711184215,1.23426578,103840.0,103830.0,1.34300727]
[1750711187339,1.23426578,103840.0,103830.0,1.68300727]
[1750711188470,1.23426578,103840.0,103830.0,1.26712466]
[1750711188693,1.23426578,103840.0,103830.0,1.38680727]
[1750711189396,1.23426578,103840.0,103830.0,0.97092466]
[1750711189589,1.23426578,103840.0,103830.0,1.38680727]
[1750711190496,1.22085179,103840.0,103830.0,1.33166551]
[1750711190693,1.20519294,103840.0,103830.0,2.21343073]
[1750711191081,1.13473675,103840.0,103830.0,2.21343073]
[1750711191944,1.13473675,103840.0,103830.0,2.21043073]
[1750711192155,1.13473675,103840.0,103830.0,2.21143073]